Cogmind - Beta 15 @@@ ROGUE MODE // 2025.09.02 @ 18:04:04 Player: shapeshifter Result: Destroyed by Autobeam Turret with Autobeam Performance ------------- Evolutions (0) 0 Regions Visited (2) 400 Robots Destroyed (17) 85 Value Destroyed (502) 502 Prototype IDs (0) 0 Alien Tech Used (0) 0 Bonus (0) 0 TOTAL SCORE: 987 Bonus ------- None Cogmind --------- Core Integrity 0/250 Matter 14/300 Energy 100/100 System Corruption 0% Temperature Cool (24) Movement Rolling (160) Ox5 Location -10/Subcaves Parts ------- > --- POWER (1) -------- (None) > --- PROPULSION (2) --- Subdweller Monowheel Subdweller Monowheel > --- UTILITY (2) ------ Humpback > --- WEAPON (2) ------- Subdweller Machine Gun Grenade Launcher > --- INVENTORY (35) --- Compact Wheel Subdweller Monowheel Subdweller Monowheel Subdweller Monowheel Disposable Heat Sink Large Storage Unit Sensor Array Seismic Detector Makeshift Light Armor Plating Assault Rifle Makeshift Hammer SUBCON Basin (Full) Peak State ------------ > --- POWER ------------ (None) > --- PROPULSION ------- Subdweller Monowheel Subdweller Monowheel > --- UTILITY ---------- Humpback > --- WEAPON ----------- Assault Rifle Subdweller Machine Gun > --- INVENTORY -------- Compact Wheel Subdweller Monowheel Subdweller Monowheel Subdweller Monowheel Disposable Heat Sink Large Storage Unit Sensor Array Seismic Detector Makeshift Light Armor Plating Grenade Launcher Makeshift Hammer SUBCON Basin [Rating: 29] Favorites ----------- Power Ion Engine Engine Ion Engine Propulsion Light Treads Treads Light Treads Wheel Subdweller Monowheel Utility Large Storage Unit Device Seismic Detector Storage Large Storage Unit Protection Light Armor Plating Weapon Assault Rifle Energy Gun Riot Gun Ballistic Gun Assault Rifle Launcher Grenade Launcher Build | -11 -10 -10 ------- Run | Yrd Mat Sub Slots Evolved . | . . . Power . | . . . Propulsion . | . . . Utility . | . . . Weapon . | . . . Parts Attached 22 | 8 2 12 Power 2 | 1 . 1 Engine 2 | 1 . 1 Core . | . . . Reactor . | . . . Propulsion 8 | 3 . 5 Treads 2 | 2 . . Leg . | . . . Wheel 6 | 1 . 5 Hover . | . . . Flight . | . . . Utility 6 | 2 2 2 Device 1 | 1 . . Storage 3 | 1 1 1 Processor . | . . . Hackware . | . . . Protection 2 | . 1 1 Artifact . | . . . Weapon 6 | 2 . 4 Energy Gun 1 | . . 1 Energy Cannon . | . . . Ballistic Gun 4 | 2 . 2 Ballistic Cannon . | . . . Launcher 1 | . . 1 Special Weapon . | . . . Impact Weapon . | . . . Slashing Weapon . | . . . Piercing Weapon . | . . . Special Melee Weapon . | . . . Unidentified Prototypes . | . . . Parts Lost 7 | . . 7 Power 2 | . . 2 Propulsion 2 | . . 2 Utility 1 | . . 1 Weapon 2 | . . 2 Highest Loss Streak 2 | . . 2 To Critical Strikes . | . . . Average Backups 8 | 2 5 8 Power . | . 1 . Propulsion 2 | 1 2 3 Utility 3 | . 1 3 Weapon 1 | . . 1 Tool/Special . | . . . Unused Backups 6 | . . 6 Power . | . . . Propulsion 1 | . . 1 Utility 4 | . . 4 Weapon 1 | . . 1 Tool/Special . | . . . Average Slot Usage (%) 87 | . 100 84 Engine 8 | . 14 7 Treads 15 | . 28 12 Wheel 11 | . . 14 Storage 14 | . 14 14 Protection 7 | . 9 7 Ballistic Gun 26 | . 28 26 Peak Build Rating 29 | 7 7 29 Average Rating 11 | 4 7 13 On Entrance 4 | . 7 7 Naked Turns . | . . . Heaviest Build 208 | 14 31 208 Greatest Support 40 | 40 40 40 Greatest Overweight (x) 5 | . . 5 Average Overweight (x) 2 | . . 2 Largest Inventory Capacity 35 | 8 15 35 Average Capacity 21 | 7 14 24 Most Carried 26 | 5 7 26 Average Carried 10 | 3 5 12 Final Capacity 35 | 8 15 35 Final Carried 26 | 3 7 26 Class Distribution -------------------- 62% | Mutant 37% | Hauler-Mutant Dominant Class ---------------- Mutant | -10/Materials Mutant | -10/Subcaves Resources | -11 -10 -10 ----------- Run | Yrd Mat Sub Matter Collected 647 | 202 16 429 Remotely . | . . . Salvage Created 595 | 19 29 547 Parts 49 | 2 5 42 Haulers Intercepted . | . . . Recyclers Shooed . | . . . Parts Field Recycled . | . . . Retrieved Matter . | . . . Parts Self-Destructed 11 | . . 11 Prevented . | . . . Kills | -11 -10 -10 ------- Run | Yrd Mat Sub Combat Hostiles Destroyed 16 | . 2 14 Guns 12 | . 2 10 AOE 4 | . . 4 Classes Destroyed 4 | 1 1 2 Tunneler 1 | 1 . . Swarmer 5 | . 2 3 Sentry 1 | . . 1 Subdweller 10 | . . 10 Best Kill Streak 4 | 1 2 4 Combat Bots Only 4 | . 2 4 Max Kills in Single Turn 1 | 1 1 1 Gunslinging . | . . . Exploded 1 | . . 1 Melee . | . . . Uniques/NPCs Destroyed . | . . . Combat | -11 -10 -10 -------- Run | Yrd Mat Sub Hostile Shots Fired 141 | . 9 132 Missed 40 | . 2 38 Hits 101 | . 7 94 Projectile 101 | . 7 94 Critical Strikes 4 | . 1 3 Damage Taken 1445 | . 51 1394 Core 250 | . 17 233 Absorbed by Shields . | . . . Core Remaining (%) 100 | 100 . . Volleys Fired 105 | 6 9 90 Largest 2 | 2 2 2 Hottest 60 | 40 40 60 Shots Fired 170 | 12 18 140 Gun 152 | 12 18 122 Cannon . | . . . Launcher 18 | . . 18 Special . | . . . Kinetic 152 | 12 18 122 Thermal . | . . . Explosive 18 | . . 18 Electromagnetic . | . . . Robot Hit Streak 18 | 6 3 18 Robot Miss Streak 5 | 1 4 5 Penetration Max . | . . . Secondary Targets 1 | . 1 . Max Gunslinging Chain 1 | . 1 . Shots Hit Robots 100 | 10 8 82 Core Hits 39 | 3 2 34 Critical Kills . | . . . Critical Parts Destroyed 1 | . . 1 Critical Strikes 1 | . . 1 Destroy 1 | . . 1 Melee Attacks . | . . . Impact . | . . . Slashing . | . . . Piercing . | . . . Sneak Attacks . | . . . Combat Hostiles . | . . . Follow-up Attacks . | . . . Damage Inflicted 1492 | 98 105 1289 Guns 1177 | 98 105 974 Cannons . | . . . Explosions 315 | . . 315 Melee . | . . . Ramming . | . . . Kinetic 1177 | 98 105 974 Thermal . | . . . Explosive 315 | . . 315 Electromagnetic . | . . . Impact . | . . . Slashing . | . . . Piercing . | . . . Highest Corruption . | . . . Average Corruption . | . . . Corruption Purged . | . . . Corruption Blocked . | . . . Overload Shots . | . . . Overflow Damage . | . . . Projectiles . | . . . Explosions . | . . . Melee . | . . . Knockbacks . | . . . Impact . | . . . Kinetic . | . . . Secondary . | . . . Self-Inflicted Damage 69 | . . 69 Shots 4 | . . 4 Rammed . | . . . Targets Rammed . | . . . Kicked . | . . . Crushed . | . . . Highest Temperature 6 | . 6 . Average Temperature 4 | . 4 . Received Heat Transfer 126 | . . 126 Siege Activations . | . . . Martial Activations . | . . . Shielding Activations . | . . . Robots Disrupted . | . . . Combat Hostiles . | . . . Robots Corrupted . | . . . Combat Hostiles . | . . . Parts Fried . | . . . Impact Corruptions . | . . . Robots Melted . | . . . Combat Hostiles . | . . . Parts Melted . | . . . Heat Transferred . | . . . Parts Sabotaged . | . . . Parts Stolen . | . . . Parts Stripped . | . . . Power Chain Reactions . | . . . Alert | -11 -10 -10 ------- Run | Yrd Mat Sub Maximum Alert Level . | . . . Low Security (%) 100 | 100 100 . Level 1 . | . . . Level 2 . | . . . Level 3 . | . . . Level 4 . | . . . Level 5 . | . . . High Security . | . . . Max Security . | . . . Peak Influence 50 | 5 50 . Initial . | . . . Average 4 | . 5 . Influence Increases 215 | 5 55 155 Destroy 0b10 Robot/C 120 | . 40 80 Destroy 0b10 Robot/NC 5 | 5 . . Destroy Leader 10 | . 10 . Successful Hack 5 | . 5 . Lose Combat Pursuer 75 | . . 75 Influence Decreases 188 | 5 55 128 Time Decay 188 | 5 55 128 Squads Dispatched . | . . . Investigation . | . . . Extermination . | . . . Reinforcement . | . . . Assault . | . . . Garrison . | . . . Intercept . | . . . Searches Triggered . | . . . Construction Impeded . | . . . Haulers Reinforced . | . . . Active Scanning Responses . | . . . Cargo Convoy Interrupts . | . . . Stealth | -11 -10 -10 --------- Run | Yrd Mat Sub Distress Signals . | . . . Communications Jammed . | . . . Distress Signals . | . . . Times Spotted 27 | . 6 21 Peak Tracking Total 6 | . 3 6 Tactical Retreats 3 | . . 3 Traps | -11 -10 -10 ------- Run | Yrd Mat Sub Traps Triggered . | . . . Indirectly . | . . . Trap Hack Attempts . | . . . Triggered . | . . . Disarmed . | . . . Reprogrammed . | . . . Reused . | . . . Traps Extracted . | . . . Installed . | . . . Triggered . | . . . Machines | -11 -10 -10 ---------- Run | Yrd Mat Sub Machines Disabled 2 | . . 2 Max in Single Turn 1 | . . 1 Machines Repaired . | . . . Machines Dismantled . | . . . Machines Sabotaged . | . . . Overloaded Fab Kills . | . . . Hacking | -11 -10 -10 --------- Run | Yrd Mat Sub Machines Accessed 6 | . 4 2 Terminals 2 | . 2 . Fabricators . | . . . Repair Stations . | . . . Recycling Units 2 | . 2 . Scanalyzers . | . . . Garrison Access . | . . . Total Hacks 9 | . 7 2 Successful 6 | . 4 2 Failed 3 | . 3 . Catastrophic 1 | . 1 . Database Lockouts . | . . . Manual 4 | . 4 . Terminals 4 | . 4 . Fabricators . | . . . Repair Stations . | . . . Recycling Units 3 | . 3 . Scanalyzers . | . . . Garrison Access . | . . . Terminal Hacks 2 | . . 2 Open Door 1 | . . 1 Release Object 1 | . . 1 Fabricator Hacks . | . . . Repair Station Hacks . | . . . Recycling Unit Hacks 2 | . 2 . Retrieve Components 2 | . 2 . Scanalyzer . | . . . Garrison Access Hacks . | . . . Unauthorized Hacks 2 | . 2 . Terminals 2 | . 2 . Botnet 1 | . 1 . Skim 1 | . 1 . Fabricators . | . . . Repair Stations . | . . . Recycling Units . | . . . Scanalyzers . | . . . Garrison Access . | . . . Data Cores Recovered . | . . . Used . | . . . Hacking Detections 3 | . 3 . Full Trace Events . | . . . Feedback Events . | . . . Feedback Blocked . | . . . Robot Schematics Acquired . | . . . Robots Built . | . . . Authchips . | . . . Time . | . . . Total Robot Build Rating . | . . . Part Schematics Acquired . | . . . Parts Built . | . . . Authchips . | . . . Time . | . . . Total Part Build Rating . | . . . Parts Repaired . | . . . Time . | . . . Parts Recycled . | . . . Recycled Matter . | . . . Retrieved Matter . | . . . Retrieved Components 3 | . 3 . Parts Scanalyzed . | . . . Part Schematics Acquired . | . . . Parts Damaged . | . . . Bothacking | -11 -10 -10 ------------ Run | Yrd Mat Sub Used RIF Installer . | . . . Robots Hacked . | . . . Non-combat . | . . . Combat . | . . . Robot Hacks Applied . | . . . Relay Couplers Released . | . . . Fabnet Peak Effective % . | . . . Robots Rewired . | . . . Allies Hacked . | . . . Hacks Repelled . | . . . Allies | -11 -10 -10 -------- Run | Yrd Mat Sub Total Allies . | . . . Largest Group . | . . . Highest-Rated Group . | . . . Highest-Rated Ally . | . . . Total Orders . | . . . Ally Attacks . | . . . Total Damage . | . . . Kills . | . . . Allies Corrupted . | . . . Allies Melted . | . . . Intel | -11 -10 -10 ------- Run | Yrd Mat Sub Active Infowar (turns) 133 | 3 130 . Seismic 133 | 3 130 . Robot Analysis Total . | . . . Derelict Logs Recovered 1 | . . 1 Drone Launches . | . . . Drone Recoveries . | . . . Exploration | -11 -10 -10 ------------- Run | Yrd Mat Sub Turns Passed 2282 | 92 423 1767 Spaces Moved 1132 | 60 149 923 Core 34 | 34 . . Treads 607 | 26 149 432 Legs . | . . . Wheels 491 | . . 491 Hover . | . . . Flight . | . . . Fastest Speed 50 | 50 160 107 Average Speed 158 | 97 160 161 Slowest Speed 240 | 160 160 240 Overloaded Moves . | . . . Propulsion Burnouts . | . . . Robots Hopped . | . . . Potential Cave-ins . | . . . Cave-ins Triggered . | . . . Exploration Rate (%) 30 | 4 35 52 Regions Visited 2 Branch Regions 1 Pre-discovered Areas . | . . . Known Exits Taken . | . . . Unknown Exits Taken 2 | 1 1 . Scrap Searched . | . . . Spaces Dug 19 | . . 19 Terrain Destroyed 108 | . . 108 Melee . | . . . Projectile 2 | . . 2 AOE 106 | . . 106 Terrain Rammed . | . . . Walls Destroyed . | . . . Machines Disabled . | . . . Actions | -11 -10 -10 --------- Run | Yrd Mat Sub Total 1458 | 81 317 1060 Wait 163 | . 152 11 Move 1130 | 59 148 923 Hop . | . . . Pick Up 31 | 8 5 18 Fast Attach 3 | 2 . 1 Attach 11 | 5 . 6 Detach . | . . . Swap 10 | 1 2 7 Drop 5 | . 1 4 Fire 105 | 6 9 90 Melee . | . . . Ram . | . . . Kick . | . . . Crush . | . . . Escape Stasis . | . . . Rewire . | . . . Trap . | . . . Miscellaneous . | . . . Route ------- -11/Scrapyard -10/Materials -10/Subcaves (discovered 3 exits: [*Mat x2] / [*Rec]) History --------- Turn | Location | Event 13 | -11/Scrapyard | Discovered new exit (range 16) 93 | -11/Scrapyard | Entered Materials 301 | -10/Materials | Build established: Mutant 503 | -10/Materials | Discovered new exit (range 9) 516 | -10/Materials | Entered Subcaves 517 | -10/Subcaves | Approached by a straggling Scientist 1203 | -10/Subcaves | Shifting Twisted Machinery released Sub. Machine Gun 1203 | -10/Subcaves | Shifting Twisted Machinery released Riot Gun 1537 | -10/Subcaves | Core integrity fell below 50% 1562 | -10/Subcaves | Core integrity fell below 20% 1731 | -10/Subcaves | Discovered new exit (range 2) 1749 | -10/Subcaves | Build established: Hauler-Mutant 1780 | -10/Subcaves | Discovered new exit (range 5) 1857 | -10/Subcaves | Found SUBCON Basin 2226 | -10/Subcaves | Ambushed by Subdweller buried in earth 2228 | -10/Subcaves | Ambushed by Subdweller buried in earth 2228 | -10/Subcaves | Ambushed by Subdweller buried in earth 2231 | -10/Subcaves | Ambushed by Subdweller buried in earth 2264 | -10/Subcaves | Discovered new exit (range 10) 2283 | -10/Subcaves | Destroyed by Autobeam Turret with Autobeam Last Messages --------------- 02235_ DK-WXA(R): "ARGHSUB!" 02236_ The unstable cave ceiling collapses. 02237_ 7I-8ZZ(R) destroyed. 02240_ DK-WXA(R) suffers critical hit (Destroy). 02240_ Destroyed Sub. Beam Cannon. 02245_ The unstable cave ceiling collapses. 02246_ Acquired 37 matter. 02247_ The unstable cave ceiling collapses. 02249_ DK-WXA(R) affixes Scrap Shield Fragment to Scrap Shield. 02251_ The unstable cave ceiling collapses. 02257_ Sub. Machine Gun shoots sparks and powers down. 02258_ The unstable cave ceiling collapses. 02264_ EXIT=FOUND 02265_ The unstable cave ceiling collapses. 02272_ Acquired 19 matter. 02277_ The unstable cave ceiling collapses. 02279_ Machine disabled. 02280_ The unstable cave ceiling collapses. Map ----- +----------------------------------------------------+ | ????????????# #?????### ## ##?# | | ????????????## & ##?????# ##?## | | ?????????????## & ##??????# [ #### | | ?????????????## & ####??### ### ## | | ?????????????# #### ### ### | | ????????????## ## ###### | | ????????????# ## ##?## ### | | ??????????###### # ## ## ## ### ### | | ??????????# ##?# ##### ## | | ??????????# ### #####?#?# | | ??????????# #???? ### ## %% ### | | ??????????# #??? ##### %%### #?## | | ??????????# ##?? #???# #?## #??# | | ??????????# ### #?? % "## #?## | | #????????## #? ?## #?# | | ##???????# ## ## #?### #?# | | ##?????# ####### #####" t t "#???###### | | ####?# #?????## ##???#" "??????## | | #?## ?????## #????#" "??????# | | ##??##?????## #???## < #??????# ## | | #???????#### ##??? #??????## ## | | # ######??# ##### #??????## ## | | ## ##?# # # ##?????# | | ?## ### # #?????# | | ??# [ [* #??????# | | ??# = @ & # ##??????# | | ??###### ########## & &# ####???????####### | | ???????######?????# # # # #????????????????? | | ??????????????????# # # # ###????????????????? | | ??????????????????# # # ####??????????????????? | | ??????????????????##########?????????????????????? | | ?????????????????????????????????????????????????? | | ?????????????????????????????????????????????????? | | ?????????????????????????????????????????????????? | | ?????????????????????????????????????????????????? | | ?????????????????????????????????????????????????? | | ?????????????????????????????????????????????????? | | ?????????????????????????????????????????????????? | | ?????????????????????????????????????????????????? | | ?????????????????????????????????????????????????? | | ?????????????????????????????????????????????????? | | ?????????????????????????????????????????????????? | | | | | | | | | | | | | | | | | +----------------------------------------------------+ Best States ------------- Heat Dissipation 25 Energy Generation 10 Energy Capacity 250 Matter Stores 235 Matter Capacity 300 Sight Range 16 Terrain Scan Density 10 Armor Coverage 150 Evasion (%) 50 Recoil Reduction 2 Item Schematics ----------------- None Robot Schematics ------------------ None Fabricated ------------ Nothing Repaired ---------- Nothing Alien Tech Used ----------------- None Achievements -------------- None Challenges ------------ None Game ------ Seed FissionLinearArmor Manual? 0 Play Time 00:10:50 Cumulative 252.8 hours Start 2025.09.02 @ 17:55:12 End 2025.09.02 @ 18:04:04 Sessions 1 Manual Loads 0 Difficulty Rogue Special Mode None Game No. 373 Rogue 373 Adventurer 0 Explorer 0 Win Type - Total 5 Types 4/0/1/0/0/0/0/0/0/0 Lore% 83 Gallery% 79 Achievement% 61 Wizard Run 0 Options --------- Layout 1 ASCII 0 Keyboard 0 Movement Mouse Keybinds 0 Fullscreen 1 Font 24/Smallcaps Map View 50x40 Zoom Use 0% Tactical HUD 1 Map Filters NONE Filters NONE Steam 1 RUN: 4d6e7400-2801-4580-ad61-7bf0282bac23